fUST/lending_fUST_20240301
["ID","MTS","AMOUNT","RATE_DAILY","PERIOD"]
[315932530,1709290244933,-500.0,0.00020999,2]
[315932532,1709290244942,-339.01,0.00020999,2]
[315932534,1709290244952,-500.0,0.00020999,2]
[315932536,1709290244961,-588.69791845,0.00020999,2]
[315932538,1709290244970,-500.0,0.00020999,2]
[315932540,1709290244980,-500.0,0.00020999,2]
[315932542,1709290244989,-500.0,0.00020999,2]
[315932544,1709290244998,-500.0,0.00020999,2]
[315932546,1709290245007,-232.53166421,0.00020999,2]
[315932548,1709290245016,-265.58564018,0.00020999,2]
[315932550,1709290245025,-500.0,0.00020999,2]
[315932551,1709290245034,-485.0,0.00020999,2]
[315932553,1709290245043,-500.0,0.00020999,2]
[315932555,1709290245053,-500.0,0.00020999,2]
[315932557,1709290245062,-500.0,0.00020999,2]
[315932559,1709290245071,-500.0,0.00020999,2]
[315932561,1709290245081,-321.30399158,0.00020999,2]
[315932563,1709290245091,-366.07368518,0.00020999,2]
[315932565,1709290245099,-500.0,0.00020999,2]
[315932567,1709290245108,-500.0,0.00020999,2]
[315932569,1709290245117,-500.0,0.00020999,2]
[315932571,1709290245126,-500.0,0.00020999,2]
[315932573,1709290245135,-199.04521882,0.00020999,2]
[315932575,1709290245144,-287.11901166,0.00020999,2]
[315932577,1709290245153,-500.0,0.00020999,2]
[315932579,1709290245162,-504187.99284738,0.00021,2]
[315932590,1709290245255,-842.999998,0.00021,2]
[315932592,1709290245266,-57366.09511497,0.00021,2]
[315932594,1709290245277,-2725.54712351,0.00021,2]
[315933253,1709290873496,150.0,0.000205,30]
[315934465,1709291441443,-4258.49627882,0.00018891,2]
[315934466,1709291441503,-4455.39112505,0.00018891,2]
[315934473,1709291446445,-2079.99999,0.00018891,2]
[315934474,1709291446457,-1741.55152867,0.00018891,2]
[315934475,1709291446466,-184.53594767,0.00018892,2]
[315934476,1709291446476,-4954.09232366,0.00018892,2]
[315935408,1709292001144,1365.2589024,0.00017572,2]
[315935495,1709292024022,24900.0,0.00017467,2]
[315935816,1709292170503,184.53594767,0.00017699,2]
[315935817,1709292201854,12535.43892254,0.00017699,2]
[315936094,1709292426415,151.51515152,0.00017611,2]
[315936642,1709292531341,250.0,0.00017212,2]
[315936780,1709292578179,174.55813776,0.00017126,2]
[315936781,1709292605525,3000.0,0.00017264,2]
[315936855,1709292635014,-184.53594767,0.00017829,2]
[315936856,1709292635023,-1531.98825195,0.0001783,2]
[315936861,1709292640258,-8124.86205572,0.00017829,2]
[315936862,1709292640319,-2829.75889917,0.00017829,2]
[315936865,1709292643582,-1580.81796765,0.00017829,2]
[315936866,1709292643591,-604.11174805,0.0001783,2]
[315936867,1709292643603,-15234.87744507,0.0001783,2]
[315936868,1709292643613,-1226.4534103,0.00017884,2]
[315936869,1709292643622,-16741.2122698,0.00017928,2]
[315936870,1709292643632,-3425.5433855,0.0001801,2]
[315936871,1709292643641,-300.747492,0.00018014,2]
[315936873,1709292643651,-905.71003996,0.000189,2]
[315936874,1709292643659,-164.232121,0.00019178,2]
[315936875,1709292643668,-166.666666,0.00019178,2]
[315936876,1709292643678,-4162.35867025,0.00019178,2]
[315936877,1709292643687,-1006.0,0.00019985,2]
[315936878,1709292643696,-1255.68,0.0001999,3]
[315936879,1709292643706,-1009.96724064,0.0002,2]
[315936880,1709292643717,-20840.03860396,0.0002,2]
[315936881,1709292643726,-190.55832871,0.00020089,2]
[315936882,1709292643736,-2169.81,0.00020178,3]
[315936883,1709292643745,-1506.82,0.00020178,3]
[315936884,1709292643755,-1808.18,0.00020179,3]
[315936885,1709292643764,-24705.5621974,0.00020189,5]
[315936886,1709292643773,-2695.36354294,0.00020189,5]
[315936887,1709292643783,-1615.42528318,0.00020189,5]
[315936888,1709292643793,-1716.52419962,0.0002028,4]
[315936889,1709292643802,-531.57165671,0.00020299,2]
[315936890,1709292643811,-166.666666,0.000203,2]
[315936891,1709292643821,-154.98450155,0.000205,2]
[315936892,1709292643830,-500.0,0.00020547,2]
[315936893,1709292643840,-503.86978364,0.00020547,2]
[315936894,1709292643849,-500.0,0.00020547,2]
[315936895,1709292643861,-500.0,0.00020547,2]
[315936896,1709292643870,-501.66620531,0.00020547,2]
[315936897,1709292643879,-500.0,0.00020547,2]
[315936898,1709292643889,-500.0,0.00020547,2]
[315936899,1709292643898,-500.0,0.00020547,2]
[315936900,1709292643908,-500.0,0.00020547,2]
[315936901,1709292643917,-500.0,0.00020547,2]
[315936902,1709292643926,-500.53652106,0.00020547,2]
[315936903,1709292643936,-500.0,0.00020547,2]
[315936904,1709292643945,-500.0,0.00020547,2]
[315936905,1709292643954,-500.0,0.00020547,2]
[315936906,1709292643963,-500.0,0.00020547,2]
[315936907,1709292643972,-500.0,0.00020547,2]
[315936908,1709292643982,-500.0,0.00020547,2]
[315936909,1709292643991,-256.51152698,0.00020547,2]
[315936910,1709292644000,-500.0,0.00020547,2]
[315936911,1709292644009,-255.33321828,0.00020547,2]
[315936912,1709292644018,-501.02330965,0.00020547,2]
[315936913,1709292644027,-500.0,0.00020547,2]
[315936914,1709292644037,-210.65405992,0.00020547,2]
[315936915,1709292644045,-507.10540728,0.00020547,2]
[315936916,1709292644054,-501.10726493,0.00020547,2]
[315936917,1709292644063,-300.25469653,0.00020547,2]
[315936918,1709292644072,-500.0,0.00020547,2]
[315936919,1709292644082,-500.45670835,0.00020547,2]
[315936920,1709292644091,-500.88140319,0.00020547,2]
[315936921,1709292644101,-500.38414854,0.00020547,2]
[315936922,1709292644110,-500.84755467,0.00020547,2]
[315936923,1709292644120,-500.0,0.00020547,2]
[315936924,1709292644129,-500.0,0.00020547,2]
[315936925,1709292644139,-500.0,0.00020547,2]
[315936926,1709292644148,-500.0,0.00020547,2]
[315936927,1709292644159,-500.0,0.00020547,2]
[315936928,1709292644168,-500.32171693,0.00020547,2]
[315936929,1709292644177,-500.0,0.00020547,2]
[315936930,1709292644187,-500.0,0.00020547,2]
[315936931,1709292644196,-500.0,0.00020547,2]
[315936932,1709292644206,-500.57471172,0.00020547,2]
[315936933,1709292644215,-500.0,0.00020547,2]
[315936934,1709292644224,-500.0,0.00020547,2]
[315936935,1709292644233,-500.0,0.00020547,2]
[315936936,1709292644242,-500.51054355,0.00020547,2]
[315936937,1709292644251,-500.44420633,0.00020547,2]
[315936938,1709292644260,-500.56334309,0.00020547,2]
[315936939,1709292644269,-500.0,0.00020547,2]
[315936940,1709292644278,-500.0,0.00020547,2]
[315936941,1709292644287,-500.0,0.00020547,2]
[315936942,1709292644296,-500.0,0.00020547,2]
[315936943,1709292644305,-500.0,0.00020547,2]
[315936944,1709292644314,-500.0,0.00020547,2]
[315936945,1709292644323,-500.30886465,0.00020547,2]
[315936946,1709292644332,-500.0,0.00020547,2]
[315936947,1709292644341,-500.0,0.00020547,2]
[315936948,1709292644351,-500.0,0.00020547,2]
[315936949,1709292644360,-500.0,0.00020547,2]
[315936950,1709292644369,-206.08930781,0.00020547,2]
[315936951,1709292644377,-500.0,0.00020547,2]
[315936952,1709292644386,-201.80826819,0.00020547,2]
[315936953,1709292644395,-500.0,0.00020547,2]
[315936954,1709292644404,-500.0,0.00020547,2]
[315936955,1709292644413,-500.0,0.00020547,2]
[315936956,1709292644421,-286.94504097,0.00020547,2]
[315936957,1709292644430,-500.0,0.00020547,2]
[315936958,1709292644439,-500.0,0.00020547,2]
[315936959,1709292644448,-500.0,0.00020547,2]
[315936960,1709292644457,-501.91045605,0.00020547,2]
[315936961,1709292644466,-500.0,0.00020547,2]
[315936962,1709292644475,-500.0,0.00020547,2]
[315936963,1709292644484,-500.0,0.00020547,2]
[315936964,1709292644494,-500.0,0.00020547,2]
[315936965,1709292644503,-342.82906328,0.00020547,2]
[315936966,1709292644514,-500.0,0.00020547,2]
[315936967,1709292644524,-500.0,0.00020547,2]
[315936968,1709292644534,-500.0,0.00020547,2]
[315936969,1709292644544,-500.0,0.00020547,2]
[315936970,1709292644554,-500.0,0.00020547,2]
[315936971,1709292644563,-500.0,0.00020547,2]
[315936972,1709292644574,-500.0,0.00020547,2]
[315936973,1709292644584,-500.0,0.00020547,2]
[315936974,1709292644594,-500.0,0.00020547,2]
[315936975,1709292644608,-276.84082357,0.00020547,2]
[315936976,1709292644619,-500.0,0.00020547,2]
[315936977,1709292644628,-317.08,0.00020547,2]
[315936978,1709292644638,-500.0,0.00020547,2]
[315936979,1709292644647,-500.0,0.00020547,2]
[315936980,1709292644657,-500.0,0.00020547,2]
[315936981,1709292644667,-500.0,0.00020547,2]
[315936982,1709292644677,-500.0,0.00020547,2]
[315936983,1709292644686,-500.20799361,0.00020547,2]
[315936984,1709292644697,-500.0,0.00020547,2]
[315936985,1709292644706,-500.0,0.00020547,2]
[315936986,1709292644717,-500.0,0.00020547,2]
[315936987,1709292644726,-378.16348214,0.00020547,2]
[315936988,1709292644736,-500.0,0.00020547,2]
[315936989,1709292644746,-500.0,0.00020547,2]
[315936990,1709292644756,-500.96297514,0.00020547,2]
[315936991,1709292644765,-500.0,0.00020547,2]
[315936992,1709292644776,-508.68075421,0.00020547,2]
[315936993,1709292644786,-500.0,0.00020547,2]
[315936994,1709292644796,-500.0,0.00020547,2]
[315936995,1709292644806,-500.0,0.00020547,2]
[315936996,1709292644816,-501.59199549,0.00020547,2]
[315936997,1709292644826,-225.38754062,0.00020547,2]
[315936998,1709292644835,-500.0,0.00020547,2]
[315936999,1709292644844,-500.0,0.00020547,2]
[315937000,1709292644856,-500.0,0.00020547,2]
[315937001,1709292644865,-500.0,0.00020547,2]
[315937002,1709292644875,-500.0,0.00020547,2]
[315937003,1709292644885,-501.75604203,0.00020547,2]
[315937004,1709292644894,-500.0,0.00020547,2]
[315937005,1709292644905,-500.0,0.00020547,2]
[315937006,1709292644915,-500.0,0.00020547,2]
[315937007,1709292644924,-500.0,0.00020547,2]
[315937008,1709292644934,-500.0,0.00020547,2]
[315937009,1709292644943,-500.0,0.00020547,2]
[315937010,1709292644953,-500.0,0.00020547,2]
[315937011,1709292644962,-500.0,0.00020547,2]
[315937012,1709292644971,-282.34762598,0.00020547,2]
[315937013,1709292644980,-500.0,0.00020547,2]
[315937014,1709292644989,-500.0,0.00020547,2]
[315937015,1709292644999,-500.0,0.00020547,2]
[315937016,1709292645008,-500.0,0.00020547,2]
[315937017,1709292645018,-501.3921257,0.00020547,2]
[315937018,1709292645027,-500.0,0.00020547,2]
[315937019,1709292645036,-261.27017344,0.00020547,2]
[315937020,1709292645045,-501.36219664,0.00020547,2]
[315937021,1709292645055,-500.0,0.00020547,2]
[315937022,1709292645064,-540.96990365,0.00020547,2]
[315937023,1709292645074,-500.0,0.00020547,2]
[315937024,1709292645083,-500.0,0.00020547,2]
[315937025,1709292645093,-500.0,0.00020547,2]
[315937026,1709292645103,-500.0,0.00020547,2]
[315937027,1709292645201,-500.0,0.00020547,2]
[315937028,1709292645210,-500.0,0.00020547,2]
[315937029,1709292645220,-500.0,0.00020547,2]
[315937030,1709292645229,-503.0611808,0.00020547,2]
[315937031,1709292645238,-500.0,0.00020547,2]
[315937032,1709292645248,-500.0,0.00020547,2]
[315937033,1709292645257,-500.0,0.00020547,2]
[315937034,1709292645266,-500.0,0.00020547,2]
[315937035,1709292645276,-501.4581081,0.00020547,2]
[315937036,1709292645285,-500.0,0.00020547,2]
[315937037,1709292645295,-500.0,0.00020547,2]
[315937038,1709292645304,-500.0,0.00020547,2]
[315937039,1709292645313,-583.42365973,0.00020547,2]
[315937040,1709292645323,-500.39508004,0.00020547,2]
[315937041,1709292645333,-500.0,0.00020547,2]
[315937042,1709292645342,-500.0,0.00020547,2]
[315937043,1709292645353,-500.0,0.00020547,2]
[315937044,1709292645362,-500.0,0.00020547,2]
[315937045,1709292645372,-500.84052282,0.00020547,2]
[315937046,1709292645381,-500.0,0.00020547,2]
[315937047,1709292645391,-409.01335916,0.00020547,2]
[315937048,1709292645400,-500.0,0.00020547,2]
[315937049,1709292645409,-500.0,0.00020547,2]
[315937050,1709292645419,-500.0,0.00020547,2]
[315937051,1709292645428,-500.0,0.00020547,2]
[315937052,1709292645438,-500.0,0.00020547,2]
[315937053,1709292645448,-500.0,0.00020547,2]
[315937054,1709292645457,-500.0,0.00020547,2]
[315937055,1709292645466,-500.0,0.00020547,2]
[315937056,1709292645476,-500.79303564,0.00020547,2]
[315937057,1709292645485,-500.23345444,0.00020547,2]
[315937058,1709292645494,-500.0,0.00020547,2]
[315937059,1709292645504,-500.0,0.00020547,2]
[315937060,1709292645514,-500.0,0.00020547,2]
[315937061,1709292645523,-500.0,0.00020547,2]
[315937062,1709292645536,-500.0,0.00020547,2]
[315937063,1709292645545,-500.0,0.00020547,2]
[315937064,1709292645555,-500.0,0.00020547,2]
[315937065,1709292645564,-500.0,0.00020547,2]
[315937066,1709292645573,-500.0,0.00020547,2]
[315937067,1709292645583,-500.0,0.00020547,2]
[315937068,1709292645592,-201.55606877,0.00020547,2]
[315937069,1709292645604,-500.0,0.00020547,2]
[315937070,1709292645613,-500.0,0.00020547,2]
[315937071,1709292645623,-500.0,0.00020547,2]
[315937072,1709292645632,-500.0,0.00020547,2]
[315937073,1709292645642,-500.0,0.00020547,2]
[315937074,1709292645651,-500.0,0.00020547,2]
[315937075,1709292645660,-500.0,0.00020547,2]
[315937076,1709292645669,-500.0,0.00020547,2]
[315937077,1709292645678,-500.0,0.00020547,2]
[315937078,1709292645687,-500.0,0.00020547,2]
[315937079,1709292645698,-500.0,0.00020547,2]
[315937080,1709292645708,-504.34415218,0.00020547,2]
[315937081,1709292645718,-500.0,0.00020547,2]
[315937082,1709292645727,-500.0,0.00020547,2]
[315937083,1709292645737,-297.95251891,0.00020547,2]
[315937084,1709292645754,-202.04748109,0.00020547,2]
[315937085,1709292645763,-248.51578606,0.00020547,2]
[315937091,1709292647951,-251.48421394,0.00020547,2]
[315937092,1709292647960,-500.0,0.00020547,2]
[315937093,1709292647971,-500.0,0.00020547,2]
[315937094,1709292647980,-500.0,0.00020547,2]
[315937095,1709292647988,-500.0,0.00020547,2]
[315937096,1709292647997,-500.0,0.00020547,2]
[315937097,1709292648006,-500.0,0.00020547,2]
[315937098,1709292648015,-500.0,0.00020547,2]
[315937099,1709292648025,-500.0,0.00020547,2]
[315937100,1709292648034,-545.31957941,0.00020547,2]
[315937101,1709292648043,-500.0,0.00020547,2]
[315937102,1709292648052,-500.0,0.00020547,2]
[315937103,1709292648061,-339.91658458,0.00020547,2]
[315937104,1709292648070,-500.0,0.00020547,2]
[315937105,1709292648079,-500.0,0.00020547,2]
[315937106,1709292648087,-44.77961754,0.00020547,2]
[315937543,1709293416348,-3716.08522626,0.00020189,5]
[315937544,1709293513950,-300.0,0.000209,9]
[315937545,1709293513999,-2618.8318689,0.00021,7]
[315938554,1709293833586,-184.53594767,0.0001841,2]
[315938555,1709293833598,-496.03785232,0.0001841,2]
[315938570,1709293839468,-1640.06214768,0.0001841,2]
[315938571,1709293839479,-184.53594767,0.00018411,2]
[315938572,1709293839489,-5730.98843125,0.00018411,2]
[315938573,1709293839503,-2109.37085496,0.00018411,2]
[315938576,1709293839527,-641.4,0.00018411,2]
[315938579,1709293839544,-974.09498087,0.00018411,2]
[315938971,1709293842911,-3079.58465546,0.00018411,2]
[315938973,1709293842923,-522.610174,0.00018413,2]
[315938975,1709293842933,-4652.59904421,0.000185,2]
[315938978,1709293842946,-1044.98682596,0.000185,2]
[315939405,1709293847000,-35675.53386812,0.000185,2]
[315939407,1709293847011,-603.80669331,0.000189,2]
[315939409,1709293847020,-24900.0,0.00018992,2]
[315939411,1709293847030,-164.232121,0.00019178,2]
[315939413,1709293847039,-166.666666,0.00019178,2]
[315939415,1709293847049,-1045.1,0.000196,2]
[315939417,1709293847058,-5000.0,0.00020189,5]
[315939420,1709293847068,-402.3375019,0.00020189,5]
[315939423,1709293847077,-11.77060848,0.00020299,2]
[315939426,1709293847093,-178.07641177,0.00020299,2]
[315939429,1709293847103,-632.32358823,0.00020537,3]
[315939660,1709293862135,2677.70937331,0.0001665,5]
[315941099,1709295034120,-2136.1,0.00018887,2]
[315941101,1709295034130,-184.53594767,0.00018888,2]
[315941103,1709295034141,-12535.43892254,0.00018888,2]
[315941105,1709295034151,-402.53779554,0.000189,2]
[315941107,1709295034160,-261.305087,0.00018962,2]
[315941109,1709295034169,-0.54349356,0.00019014,2]
[315941359,1709295041145,-6699.05394912,0.00019014,2]
[315941363,1709295042997,-546.73129128,0.00019014,2]
[315941373,1709295046054,-1609.8000002,0.00019014,2]
[315942759,1709295690516,-423.92964914,0.00020189,5]
[315942760,1709295690553,-7058.68714708,0.00020189,5]
[315942761,1709295690607,-17357.05703425,0.00020189,5]
[315942762,1709295740284,-2677.70937331,0.00020189,5]
[315942763,1709295740324,-3644.58125338,0.00020189,5]
[315942764,1709295757495,-2146.64444393,0.00020189,5]
[315942765,1709295976806,2140.0,0.0003,120]
[315942808,1709296232219,-428.57901896,0.00018159,2]
[315942809,1709296232229,-932.63024087,0.0001816,2]
[315942816,1709296232357,-996.39112083,0.0001816,2]
[315942837,1709296241291,-12535.43892254,0.00018159,2]
[315942838,1709296241302,-207.0786383,0.0001816,2]
[315942839,1709296241313,-184.53594767,0.0001816,2]
[315942840,1709296241325,-211.70163637,0.0001817,2]
[315942841,1709296241335,-261.305087,0.00018499,2]
[315942842,1709296241345,-590.3486051,0.00018514,2]
[315942843,1709296241356,-6461.744211,0.00018536,2]
[315942844,1709296241366,-400.2557468,0.0001863,2]
[315942845,1709296241376,-1362.14903815,0.00018788,2]
[315942846,1709296241388,-268.35853036,0.000189,2]
[315942847,1709296241399,-160.259021,0.00018938,2]
[315942848,1709296241410,-164.232121,0.00019178,2]
[315942849,1709296241421,-155.04651395,0.0002,4]
[315942850,1709296241431,-200.7008514,0.0002,2]
[315942851,1709296241442,-200.7008514,0.0002,2]
[315942852,1709296241453,-200.591442,0.0002,2]
[315942853,1709296241465,-155.0,0.00020189,2]
[315942854,1709296241476,-306.9518208,0.00020411,2]
[315942855,1709296241487,-401.2234818,0.00020411,2]
[315942856,1709296241499,-172.12937958,0.00020447,2]
[315942857,1709296241509,-2731.13181231,0.00020447,2]
[315942858,1709296241527,-1366.93097842,0.00020447,2]
[315942879,1709296243185,-2433.05863856,0.00018158,2]
[315942882,1709296243196,-373.43914,0.00020447,2]
[315942884,1709296243207,-841.37,0.00020537,3]
[315942886,1709296243217,-800.78,0.00020537,3]
[315942888,1709296243228,-667.32,0.00020537,3]
[315942890,1709296243238,-500.0,0.00020547,2]
[315942891,1709296243249,-500.0,0.00020547,2]
[315942892,1709296243259,-500.0,0.00020547,2]
[315942893,1709296243269,-500.0,0.00020547,2]
[315942894,1709296243279,-500.0,0.00020547,2]
[315942895,1709296243289,-502.07008472,0.00020547,2]
[315942896,1709296243299,-500.0,0.00020547,2]
[315942897,1709296243310,-500.0,0.00020547,2]
[315942898,1709296243320,-500.0,0.00020547,2]
[315942899,1709296243331,-399.09330614,0.00020547,2]
[315942900,1709296243341,-500.50848495,0.00020547,2]
[315942901,1709296243351,-500.64757059,0.00020547,2]
[315942902,1709296243362,-500.0,0.00020547,2]
[315942903,1709296243373,-501.13366447,0.00020547,2]
[315942904,1709296243384,-500.0,0.00020547,2]
[315942905,1709296243395,-500.0,0.00020547,2]
[315942906,1709296243405,-500.0,0.00020547,2]
[315942907,1709296243416,-500.0,0.00020547,2]
[315942908,1709296243426,-500.0,0.00020547,2]
[315942909,1709296243438,-500.0,0.00020547,2]
[315942910,1709296243449,-502.30803031,0.00020547,2]
[315942911,1709296243459,-500.0,0.00020547,2]
[315942912,1709296243470,-500.0,0.00020547,2]
[315942913,1709296243481,-500.0,0.00020547,2]
[315942914,1709296243491,-500.0,0.00020547,2]
[315942915,1709296243501,-500.0,0.00020547,2]
[315942916,1709296243512,-500.0,0.00020547,2]
[315942917,1709296243635,-500.0,0.00020547,2]
[315942918,1709296243647,-500.0,0.00020547,2]
[315942919,1709296243659,-500.0,0.00020547,2]
[315942920,1709296243668,-151.0,0.00020547,2]
[315942921,1709296243677,-151.0,0.00020547,2]
[315942922,1709296243686,-151.0,0.00020547,2]
[315942923,1709296243695,-151.0,0.00020547,2]
[315942924,1709296243705,-500.0,0.00020547,2]
[315942925,1709296243714,-580.3411928,0.00020547,2]
[315942926,1709296243724,-500.0,0.00020547,2]
[315942927,1709296243733,-500.0,0.00020547,2]
[315942928,1709296243742,-500.0,0.00020547,2]
[315942929,1709296243751,-500.0,0.00020547,2]
[315942930,1709296243760,-500.0,0.00020547,2]
[315942931,1709296243769,-500.0,0.00020547,2]
[315942932,1709296243779,-193.71,0.00020547,2]
[315942933,1709296243788,-500.0,0.00020547,2]
[315942934,1709296243797,-151.0,0.00020547,2]
[315942935,1709296243806,-151.0,0.00020547,2]
[315942936,1709296243815,-151.0,0.00020547,2]
[315942937,1709296243824,-151.0,0.00020547,2]
[315942938,1709296243833,-151.0,0.00020547,2]
[315942939,1709296243842,-151.0,0.00020547,2]
[315942940,1709296243851,-151.0,0.00020547,2]
[315942941,1709296243860,-151.0,0.00020547,2]
[315942942,1709296243869,-151.0,0.00020547,2]
[315942943,1709296243878,-274.211206,0.00020547,2]
[315942944,1709296243889,-500.0,0.00020547,2]
[315942945,1709296243898,-500.0,0.00020547,2]
[315942946,1709296243908,-500.0,0.00020547,2]
[315942947,1709296243917,-500.0,0.00020547,2]
[315942948,1709296243926,-500.0,0.00020547,2]
[315942949,1709296243936,-500.0,0.00020547,2]
[315942950,1709296243945,-500.0,0.00020547,2]
[315942951,1709296243955,-151.0,0.00020547,2]
[315942952,1709296243964,-151.0,0.00020547,2]
[315942953,1709296243974,-151.0,0.00020547,2]
[315942954,1709296243982,-151.0,0.00020547,2]
[315942955,1709296243991,-151.0,0.00020547,2]
[315942956,1709296244001,-151.0,0.00020547,2]
[315942957,1709296244010,-151.0,0.00020547,2]
[315942958,1709296244019,-151.0,0.00020547,2]
[315942959,1709296244028,-500.0,0.00020547,2]
[315942960,1709296244037,-500.0,0.00020547,2]
[315942961,1709296244046,-500.0,0.00020547,2]
[315942962,1709296244055,-151.0,0.00020547,2]
[315942963,1709296244065,-500.0,0.00020547,2]
[315942964,1709296244074,-174.1893576,0.00020547,2]
[315942965,1709296244083,-500.0,0.00020547,2]
[315942966,1709296244092,-500.0,0.00020547,2]
[315942967,1709296244102,-500.0,0.00020547,2]
[315942968,1709296244111,-500.0,0.00020547,2]
[315942969,1709296244120,-171.65580664,0.00020547,2]
[315942970,1709296244131,-233.45353161,0.00020547,2]
[315942971,1709296244140,-1454.526189,0.00020547,2]
[315942972,1709296244150,-1454.526189,0.00020547,2]
[315942973,1709296244159,-1454.526189,0.00020547,2]
[315942974,1709296244168,-1454.526189,0.00020547,2]
[315942975,1709296244178,-500.0,0.00020547,2]
[315942976,1709296244187,-500.0,0.00020547,2]
[315942977,1709296244197,-500.0,0.00020547,2]
[315942978,1709296244207,-500.0,0.00020547,2]
[315942979,1709296244216,-500.0,0.00020547,2]
[315942980,1709296244226,-1454.526189,0.00020547,2]
[315942981,1709296244235,-500.0,0.00020547,2]
[315942982,1709296244244,-1454.526189,0.00020547,2]
[315942983,1709296244253,-1454.526189,0.00020547,2]
[315942984,1709296244263,-1454.526189,0.00020547,2]
[315942985,1709296244272,-500.0,0.00020547,2]
[315942986,1709296244281,-500.0,0.00020547,2]
[315942987,1709296244291,-500.0,0.00020547,2]
[315942988,1709296244301,-500.0,0.00020547,2]
[315942989,1709296244310,-500.0,0.00020547,2]
[315942990,1709296244319,-500.0,0.00020547,2]
[315942991,1709296244329,-500.0,0.00020547,2]
[315942992,1709296244338,-500.0,0.00020547,2]
[315942993,1709296244347,-500.0,0.00020547,2]
[315942994,1709296244356,-500.0,0.00020547,2]
[315942995,1709296244365,-500.0,0.00020547,2]
[315942996,1709296244375,-500.0,0.00020547,2]
[315942997,1709296244386,-500.0,0.00020547,2]
[315942998,1709296244396,-500.0,0.00020547,2]
[315942999,1709296244405,-500.0,0.00020547,2]
[315943000,1709296244415,-500.0,0.00020547,2]
[315943001,1709296244425,-500.0,0.00020547,2]
[315943002,1709296244434,-176.83975602,0.00020547,2]
[315943003,1709296244444,-500.0,0.00020547,2]
[315943004,1709296244453,-500.0,0.00020547,2]
[315943005,1709296244462,-500.0,0.00020547,2]
[315943006,1709296244472,-500.0,0.00020547,2]
[315943007,1709296244481,-500.0,0.00020547,2]
[315943008,1709296244490,-500.0,0.00020547,2]
[315943009,1709296244499,-500.0,0.00020547,2]
[315943010,1709296244508,-500.0,0.00020547,2]
[315943011,1709296244517,-500.0,0.00020547,2]
[315943012,1709296244526,-500.0,0.00020547,2]
[315943013,1709296244536,-341.8961833,0.00020547,2]
[315943014,1709296244559,-158.1038167,0.00020547,2]
[315943015,1709296244568,-500.0,0.00020547,2]
[315943016,1709296244577,-500.0,0.00020547,2]
[315943017,1709296244587,-500.0,0.00020547,2]
[315943018,1709296244597,-500.0,0.00020547,2]
[315943019,1709296244607,-500.0,0.00020547,2]
[315943021,1709296244616,-500.0,0.00020547,2]
[315943023,1709296244625,-500.0,0.00020547,2]
[315943025,1709296244636,-151.0,0.00020547,2]
[315943027,1709296244645,-151.0,0.00020547,2]
[315943029,1709296244655,-151.0,0.00020547,2]
[315943031,1709296244664,-151.0,0.00020547,2]
[315943033,1709296244674,-213.57,0.00020547,2]
[315943035,1709296244683,-151.0,0.00020547,2]
[315943037,1709296244692,-151.0,0.00020547,2]
[315943039,1709296244702,-155.85117,0.00020547,2]
[315943041,1709296244711,-500.0,0.00020547,2]
[315943043,1709296244720,-500.0,0.00020547,2]
[315943045,1709296244729,-500.0,0.00020547,2]